fUST/lending_fUST_20240902
["ID","MTS","AMOUNT","RATE_DAILY","PERIOD"]
[336982689,1725274273973,-1000.0,0.00029473,2]
[336982690,1725274273983,-600.0,0.00029564,2]
[336982691,1725274273993,-1600.0,0.00029585,2]
[336982692,1725274274002,-584.24,0.00029589,15]
[336982693,1725274274013,-1144.91,0.00029589,15]
[336982694,1725274274023,-795.89,0.00029589,15]
[336982695,1725274274033,-521.53,0.00029589,15]
[336982696,1725274274043,-651.75,0.00029589,15]
[336982697,1725274274053,-500.0,0.00029589,15]
[336982698,1725274274063,-500.0,0.00029589,15]
[336982699,1725274274072,-500.0,0.00029589,15]
[336982700,1725274274081,-574.04,0.00029589,15]
[336982701,1725274274091,-898.46,0.00029589,15]
[336982702,1725274274101,-688.53,0.00029589,15]
[336982703,1725274274110,-609.28,0.00029589,15]
[336982704,1725274274119,-643.97,0.00029589,15]
[336982705,1725274274129,-500.0,0.00029589,15]
[336982706,1725274274139,-500.0,0.00029589,15]
[336982707,1725274274150,-500.0,0.00029589,15]
[336982708,1725274274159,-509.62,0.00029589,14]
[336982709,1725274274169,-789.32,0.00029589,15]
[336982710,1725274274179,-882.62,0.00029589,15]
[336982711,1725274274189,-809.83,0.00029589,15]
[336982712,1725274274198,-500.0,0.00029589,15]
[336982713,1725274274208,-1150.5,0.00029589,15]
[336982714,1725274274217,-6814.09,0.00029589,8]
[336982715,1725274274227,-637.27,0.00029589,15]
[336982716,1725274274240,-1308.56,0.00029589,15]
[336982717,1725274274251,-865.77,0.00029589,15]
[336982718,1725274274262,-950.48,0.00029589,15]
[336982719,1725274274271,-1009.23,0.00029589,15]
[336982720,1725274274280,-2894.89,0.00029589,15]
[336982721,1725274274289,-1601.38,0.00029589,15]
[336982722,1725274274298,-500.0,0.00029589,15]
[336982723,1725274274307,-713.16,0.00029589,15]
[336982724,1725274274316,-1471.23,0.00029589,15]
[336982725,1725274274326,-500.0,0.00029589,15]
[336982726,1725274274345,-842.06,0.00029589,15]
[336982727,1725274274355,-598.48,0.00029589,15]
[336982728,1725274274364,-718.52,0.00029589,15]
[336982729,1725274274373,-1029.29,0.00029589,15]
[336982730,1725274274383,-613.02,0.00029589,15]
[336982731,1725274274392,-865.09,0.00029589,15]
[336982732,1725274274402,-687.81,0.00029589,15]
[336982733,1725274274411,-813.79,0.00029589,15]
[336982734,1725274274421,-1898.68,0.00029589,15]
[336982735,1725274274430,-500.0,0.00029589,15]
[336982736,1725274274440,-534.47,0.00029589,15]
[336982737,1725274274450,-1265.33,0.00029589,15]
[336982738,1725274274460,-609.75,0.00029589,15]
[336982739,1725274274470,-960.51,0.00029589,15]
[336982740,1725274274481,-478.82797051,0.00029589,15]
[336982741,1725274274490,-668.74,0.00029589,15]
[336982742,1725274274500,-500.0,0.00029589,15]
[336982743,1725274274511,-978.13,0.00029589,15]
[336982744,1725274274520,-893.12,0.00029589,15]
[336982745,1725274274530,-735.7,0.00029589,15]
[336982746,1725274274539,-3970.16,0.00029589,15]
[336982747,1725274274549,-877.32,0.00029589,15]
[336982748,1725274274559,-4849.28,0.00029589,15]
[336982749,1725274274568,-953.2,0.00029589,15]
[336982750,1725274274579,-500.0,0.00029589,15]
[336982751,1725274274588,-1136.95,0.00029589,15]
[336982752,1725274274599,-730.41,0.00029589,15]
[336982753,1725274274610,-1672.46,0.00029589,15]
[336982754,1725274274623,-710.81,0.00029589,15]
[336982755,1725274274634,-640.41,0.00029589,15]
[336982756,1725274274646,-1952.94,0.00029589,15]
[336982757,1725274274657,-941.61,0.00029589,15]
[336982758,1725274274667,-547.19,0.00029589,15]
[336982759,1725274274676,-1195.94,0.00029589,15]
[336982760,1725274274686,-500.0,0.00029589,15]
[336982761,1725274274697,-523.2,0.00029589,15]
[336982762,1725274274707,-500.0,0.00029589,15]
[336982763,1725274274716,-1299.65,0.00029589,15]
[336982764,1725274274726,-1158.75,0.00029589,15]
[336982765,1725274274735,-668.22,0.00029589,15]
[336982766,1725274274744,-1600.0,0.0002961,2]
[336982767,1725274274754,-152.32070971,0.00029619,2]
[336982768,1725274274764,-500.0,0.00029624,11]
[336982769,1725274274773,-1200.0,0.00029684,2]
[336982770,1725274274784,-523.0,0.00029724,2]
[336982771,1725274274796,-150.0,0.00029724,2]
[336982772,1725274274807,-1600.0,0.00029765,2]
[336982773,1725274274818,-587.0,0.00029765,2]
[336982774,1725274274827,-272.435403,0.00029791,2]
[336982775,1725274274839,-1200.0,0.00029799,2]
[336982776,1725274274849,-29961.43622295,0.000298,3]
[336982777,1725274274860,-750.5975109,0.00029803,2]
[336982778,1725274274870,-150.0,0.00029805,2]
[336982779,1725274274879,-150.0,0.00029805,2]
[336982780,1725274274888,-1600.0,0.00029824,2]
[336982781,1725274274898,-151.0,0.00029834,5]
[336982782,1725274274908,-1000.0,0.00029847,2]
[336982783,1725274274917,-2800.0,0.00029852,2]
[336982784,1725274274927,-584.24,0.00029863,15]
[336982785,1725274274936,-1144.91,0.00029863,15]
[336982786,1725274274946,-795.89,0.00029863,15]
[336982787,1725274274955,-521.53,0.00029863,15]
[336982788,1725274274965,-651.75,0.00029863,15]
[336982789,1725274274975,-500.0,0.00029863,15]
[336982790,1725274274984,-500.0,0.00029863,15]
[336982791,1725274274993,-500.0,0.00029863,15]
[336982792,1725274275003,-574.04,0.00029863,15]
[336982793,1725274275016,-898.46,0.00029863,15]
[336982794,1725274275026,-688.53,0.00029863,15]
[336982795,1725274275035,-609.28,0.00029863,15]
[336982796,1725274275045,-643.97,0.00029863,15]
[336982797,1725274275055,-500.0,0.00029863,15]
[336982798,1725274275064,-207.35604029,0.00029863,15]
[336982799,1725274275074,-500.0,0.00029863,15]
[336982800,1725274275083,-509.62,0.00029863,14]
[336982801,1725274275093,-789.32,0.00029863,15]
[336982802,1725274275104,-882.62,0.00029863,15]
[336982803,1725274275114,-809.83,0.00029863,15]
[336982804,1725274275123,-500.0,0.00029863,15]
[336982805,1725274275134,-1150.5,0.00029863,15]
[336982806,1725274275144,-6814.09,0.00029863,8]
[336982807,1725274275154,-637.27,0.00029863,15]
[336982808,1725274275164,-1308.56,0.00029863,15]
[336982809,1725274275174,-865.77,0.00029863,15]
[336982810,1725274275184,-950.48,0.00029863,15]
[336982811,1725274275194,-1009.23,0.00029863,15]
[336982812,1725274275204,-2894.89,0.00029863,15]
[336982813,1725274275213,-1601.38,0.00029863,15]
[336982814,1725274275223,-509.77822586,0.00029863,15]
[336982815,1725274275232,-713.16,0.00029863,15]
[336982816,1725274275241,-1471.23,0.00029863,15]
[336982817,1725274275251,-502.83450598,0.00029863,15]
[336982818,1725274275264,-842.06,0.00029863,15]
[336982819,1725274275273,-598.48,0.00029863,15]
[336982820,1725274275282,-718.52,0.00029863,15]
[336982821,1725274275292,-1029.29,0.00029863,15]
[336982822,1725274275302,-613.02,0.00029863,15]
[336982823,1725274275311,-865.09,0.00029863,15]
[336982824,1725274275321,-687.81,0.00029863,15]
[336982825,1725274275330,-813.79,0.00029863,15]
[336982826,1725274275343,-1898.68,0.00029863,15]
[336982827,1725274275353,-500.0,0.00029863,15]
[336982828,1725274275362,-534.47,0.00029863,15]
[336982829,1725274275372,-1265.33,0.00029863,15]
[336982830,1725274275381,-609.75,0.00029863,15]
[336982831,1725274275391,-960.51,0.00029863,15]
[336982832,1725274275400,-668.74,0.00029863,15]
[336982833,1725274275410,-500.0,0.00029863,15]
[336982834,1725274275420,-978.13,0.00029863,15]
[336982835,1725274275430,-893.12,0.00029863,15]
[336982836,1725274275440,-735.7,0.00029863,15]
[336982837,1725274275450,-3970.16,0.00029863,15]
[336982838,1725274275459,-877.32,0.00029863,15]
[336982839,1725274275469,-4849.28,0.00029863,15]
[336982840,1725274275478,-953.2,0.00029863,15]
[336982841,1725274275488,-500.0,0.00029863,15]
[336982842,1725274275498,-1136.95,0.00029863,15]
[336982843,1725274275512,-730.41,0.00029863,15]
[336982844,1725274275521,-1672.46,0.00029863,15]
[336982845,1725274275530,-710.81,0.00029863,15]
[336982846,1725274275540,-640.41,0.00029863,15]
[336982847,1725274275550,-1952.94,0.00029863,15]
[336982848,1725274275564,-917.56988024,0.00029863,2]
[336982849,1725274275574,-941.61,0.00029863,15]
[336982850,1725274275584,-547.19,0.00029863,15]
[336982851,1725274275594,-1195.94,0.00029863,15]
[336982852,1725274275604,-500.0,0.00029863,15]
[336982853,1725274275617,-523.2,0.00029863,15]
[336982854,1725274275627,-500.0,0.00029863,15]
[336982855,1725274275638,-1299.65,0.00029863,15]
[336982856,1725274275647,-1158.75,0.00029863,15]
[336982857,1725274275658,-668.22,0.00029863,15]
[336982858,1725274275671,-3000.0,0.00029888,5]
[336982859,1725274275682,-1687.89,0.000299,7]
[336982860,1725274275694,-1059.1,0.000299,14]
[336982861,1725274275704,-1292.3439,0.00029915,30]
[336982862,1725274275714,-1000.0,0.00029933,2]
[336982863,1725274275848,-1200.0,0.00029952,2]
[336982864,1725274275859,-501.0,0.0003,2]
[336982865,1725274275870,-1000.0,0.0003,15]
[336982866,1725274275880,-40362.465,0.0003,2]
[336982867,1725274275890,-223.76565881,0.0003,120]
[336982868,1725274275900,-204.58054503,0.0003,30]
[336982869,1725274275910,-387.61918723,0.0003,10]
[336982870,1725274275919,-898.34782203,0.0003,2]
[336982871,1725274275930,-470.0,0.0003,120]
[336982872,1725274275940,-1000.0,0.0003,2]
[336982873,1725274275950,-151.0,0.0003,120]
[336982874,1725274275959,-2617.34908349,0.0003,10]
[336982875,1725274275970,-151.0,0.0003,120]
[336982876,1725274275980,-200.0,0.0003,30]
[336982877,1725274275990,-176.0,0.0003,120]
[336982878,1725274275999,-220.0,0.0003,2]
[336982879,1725274276011,-271.8371542,0.0003,2]
[336982880,1725274276021,-1600.0,0.00030072,7]
[336982881,1725274276031,-1600.0,0.00030082,7]
[336982882,1725274276041,-2800.0,0.00030092,7]
[336982883,1725274276051,-513.0,0.000301,2]
[336982884,1725274276061,-584.24,0.00030136,15]
[336982885,1725274276070,-1144.91,0.00030136,15]
[336982886,1725274276080,-795.89,0.00030136,15]
[336982887,1725274276090,-521.53,0.00030136,15]
[336982888,1725274276100,-651.75,0.00030136,15]
[336982889,1725274276110,-500.0,0.00030136,15]
[336982890,1725274276120,-500.0,0.00030136,15]
[336982891,1725274276131,-500.0,0.00030136,15]
[336982892,1725274276140,-574.04,0.00030136,15]
[336982893,1725274276154,-898.46,0.00030136,15]
[336982894,1725274276164,-688.53,0.00030136,15]
[336982895,1725274276174,-609.28,0.00030136,15]
[336982896,1725274276183,-643.97,0.00030136,15]
[336982897,1725274276194,-500.0,0.00030136,15]
[336982898,1725274276204,-486.49206853,0.00030136,15]
[336982899,1725274276214,-509.62,0.00030136,14]
[336982900,1725274276224,-789.32,0.00030136,15]
[336982901,1725274276236,-882.62,0.00030136,15]
[336982902,1725274276248,-809.83,0.00030136,15]
[336982903,1725274276261,-500.0,0.00030136,15]
[336982904,1725274276271,-1150.5,0.00030136,15]
[336982905,1725274276281,-6814.09,0.00030136,8]
[336982906,1725274276291,-637.27,0.00030136,15]
[336982907,1725274276300,-1308.56,0.00030136,15]
[336982908,1725274276309,-865.77,0.00030136,15]
[336982909,1725274276319,-950.48,0.00030136,15]
[336982910,1725274276328,-1009.23,0.00030136,15]
[336982911,1725274276337,-2894.89,0.00030136,15]
[336982912,1725274276347,-1601.38,0.00030136,15]
[336982913,1725274276357,-713.16,0.00030136,15]
[336982914,1725274276367,-1471.23,0.00030136,15]
[336982915,1725274276376,-842.06,0.00030136,15]
[336982916,1725274276387,-598.48,0.00030136,15]
[336982917,1725274276397,-718.52,0.00030136,15]
[336982918,1725274276406,-1029.29,0.00030136,15]
[336982919,1725274276417,-613.02,0.00030136,15]
[336982920,1725274276426,-865.09,0.00030136,15]
[336982921,1725274276436,-687.81,0.00030136,15]
[336982922,1725274276446,-813.79,0.00030136,15]
[336982923,1725274276455,-1898.68,0.00030136,15]
[336982924,1725274276465,-241.45044168,0.00030136,15]
[336982925,1725274276474,-534.47,0.00030136,15]
[336982926,1725274276484,-1265.33,0.00030136,15]
[336982927,1725274276495,-609.75,0.00030136,15]
[336982928,1725274276506,-5934.02,0.00030136,5]
[336982929,1725274276516,-960.51,0.00030136,15]
[336982930,1725274276526,-668.74,0.00030136,15]
[336982931,1725274276535,-637.08141241,0.00030136,15]
[336982932,1725274276545,-978.13,0.00030136,15]
[336982933,1725274276555,-893.12,0.00030136,15]
[336982934,1725274276565,-735.7,0.00030136,15]
[336982935,1725274276575,-3970.16,0.00030136,15]
[336982936,1725274276585,-877.32,0.00030136,15]
[336982937,1725274276596,-4849.28,0.00030136,15]
[336982938,1725274276606,-953.2,0.00030136,15]
[336982939,1725274276618,-407.70521865,0.00030136,15]
[336982940,1725274276628,-1136.95,0.00030136,15]
[336982941,1725274276638,-730.41,0.00030136,15]
[336982942,1725274276648,-1672.46,0.00030136,15]
[336982943,1725274276658,-710.81,0.00030136,15]
[336982944,1725274276669,-640.41,0.00030136,15]
[336982945,1725274276678,-1952.94,0.00030136,15]
[336982946,1725274276688,-941.61,0.00030136,15]
[336982947,1725274276699,-547.19,0.00030136,15]
[336982948,1725274276709,-1195.94,0.00030136,15]
[336982949,1725274276720,-500.0,0.00030136,15]
[336982950,1725274276731,-523.2,0.00030136,15]
[336982951,1725274276741,-500.0,0.00030136,15]
[336982952,1725274276751,-1299.65,0.00030136,15]
[336982953,1725274276762,-1158.75,0.00030136,15]
[336982954,1725274276773,-668.22,0.00030136,15]
[336982955,1725274276783,-402.16208353,0.00030137,60]
[336982956,1725274276793,-50000.0,0.00030137,10]
[336982957,1725274276803,-2800.0,0.0003015,7]
[336982958,1725274276813,-1200.0,0.00030152,7]
[336982959,1725274276823,-4097.0,0.000302,14]
[336982960,1725274276833,-500.0,0.00030279,7]
[336982961,1725274276844,-2345.37,0.000303,14]
[336982962,1725274276854,-1600.0,0.00030323,7]
[336982963,1725274276863,-500.0,0.00030349,7]
[336982964,1725274276873,-2800.0,0.00030385,7]
[336982965,1725274276883,-648.6211609,0.00030403,7]
[336982966,1725274276893,-584.24,0.0003041,15]
[336982967,1725274276903,-1144.91,0.0003041,15]
[336982968,1725274276913,-795.89,0.0003041,15]
[336982969,1725274276924,-521.53,0.0003041,15]
[336982970,1725274276934,-651.75,0.0003041,15]
[336982971,1725274276945,-500.0,0.0003041,15]
[336982972,1725274276954,-641.35645952,0.0003041,15]
[336982973,1725274276964,-437.04780546,0.0003041,15]
[336982974,1725274276974,-574.04,0.0003041,15]
[336982975,1725274276985,-898.46,0.0003041,15]
[336982976,1725274276995,-688.53,0.0003041,15]
[336982977,1725274277005,-609.28,0.0003041,15]
[336982978,1725274277014,-643.97,0.0003041,15]
[336982979,1725274277025,-500.0,0.0003041,15]
[336982980,1725274277035,-509.62,0.0003041,14]
[336982981,1725274277048,-789.32,0.0003041,15]
[336982982,1725274277057,-882.62,0.0003041,15]
[336982983,1725274277067,-809.83,0.0003041,15]
[336982984,1725274277088,-493.88006547,0.0003041,15]
[336982985,1725274277099,-1150.5,0.0003041,15]
[336982986,1725274277109,-6814.09,0.0003041,8]
[336982987,1725274277120,-637.27,0.0003041,15]
[336982988,1725274277130,-1308.56,0.0003041,15]
[336982989,1725274277140,-865.77,0.0003041,15]
[336982990,1725274277149,-950.48,0.0003041,15]
[336982991,1725274277159,-1009.23,0.0003041,15]
[336982992,1725274277169,-2894.89,0.0003041,15]
[336982993,1725274277179,-1601.38,0.0003041,15]
[336982994,1725274277189,-713.16,0.0003041,15]
[336982995,1725274277199,-1471.23,0.0003041,15]
[336982996,1725274277209,-842.06,0.0003041,15]
[336982997,1725274277219,-598.48,0.0003041,15]
[336982998,1725274277229,-718.52,0.0003041,15]
[336982999,1725274277240,-1029.29,0.0003041,15]
[336983000,1725274277253,-613.02,0.0003041,15]
[336983001,1725274277267,-865.09,0.0003041,15]
[336983002,1725274277277,-687.81,0.0003041,15]
[336983003,1725274277286,-813.79,0.0003041,15]
[336983004,1725274277296,-1898.68,0.0003041,15]
[336983005,1725274277306,-1265.33,0.0003041,15]
[336983006,1725274277316,-609.75,0.0003041,15]
[336983007,1725274277327,-960.51,0.0003041,15]
[336983008,1725274277337,-668.74,0.0003041,15]
[336983009,1725274277347,-978.13,0.0003041,15]
[336983010,1725274277357,-893.12,0.0003041,15]
[336983011,1725274277368,-735.7,0.0003041,15]
[336983012,1725274277377,-3970.16,0.0003041,15]
[336983013,1725274277387,-877.32,0.0003041,15]
[336983014,1725274277397,-4849.28,0.0003041,15]
[336983015,1725274277407,-953.2,0.0003041,15]
[336983016,1725274277417,-1136.95,0.0003041,15]
[336983017,1725274277427,-730.41,0.0003041,15]
[336983018,1725274277437,-1672.46,0.0003041,15]
[336983019,1725274277446,-710.81,0.0003041,15]
[336983020,1725274277456,-640.41,0.0003041,15]
[336983021,1725274277465,-1952.94,0.0003041,15]
[336983022,1725274277475,-941.61,0.0003041,15]
[336983023,1725274277485,-547.19,0.0003041,15]
[336983024,1725274277494,-1195.94,0.0003041,15]
[336983025,1725274277504,-500.0,0.0003041,15]
[336983026,1725274277516,-523.2,0.0003041,15]
[336983027,1725274277526,-500.0,0.0003041,15]
[336983028,1725274277536,-1299.65,0.0003041,15]
[336983029,1725274277547,-1158.75,0.0003041,15]
[336983030,1725274277556,-668.22,0.0003041,15]
[336983031,1725274277567,-868.72847442,0.00030456,7]
[336983032,1725274277576,-3000.0,0.00030488,4]
[336983033,1725274277586,-1200.0,0.0003053,7]
[336983034,1725274277597,-153.0,0.00030551,2]
[336983035,1725274277608,-153.0,0.00030551,2]
[336983036,1725274277621,-153.0,0.00030551,2]
[336983037,1725274277630,-153.0,0.00030551,2]
[336983038,1725274277640,-153.0,0.00030551,2]
[336983039,1725274277650,-2800.0,0.00030571,7]
[336983040,1725274277662,-1600.0,0.00030573,7]
[336983041,1725274277672,-1600.0,0.00030628,7]
[336983042,1725274277681,-306.0,0.00030634,2]
[336983043,1725274277690,-153.0,0.00030634,2]
[336983044,1725274277702,-153.0,0.00030634,2]
[336983045,1725274277712,-153.0,0.00030634,2]
[336983046,1725274277722,-153.0,0.00030634,2]
[336983047,1725274277732,-235.0879828,0.00030634,2]
[336983048,1725274277741,-1000.0,0.00030659,7]
[336983049,1725274277750,-1200.0,0.00030672,7]
[336983050,1725274277762,-584.24,0.00030684,15]
[336983051,1725274277772,-1144.91,0.00030684,15]
[336983052,1725274277781,-795.89,0.00030684,15]
[336983053,1725274277791,-521.53,0.00030684,15]
[336983054,1725274277802,-651.75,0.00030684,15]
[336983055,1725274277811,-474.65283784,0.00030684,15]
[336983056,1725274277820,-574.04,0.00030684,15]
[336983057,1725274277830,-898.46,0.00030684,15]
[336983058,1725274277840,-688.53,0.00030684,15]
[336983059,1725274277850,-609.28,0.00030684,15]
[336983060,1725274277860,-643.97,0.00030684,15]
[336983061,1725274277870,-462.96003867,0.00030684,15]
[336983062,1725274277880,-509.62,0.00030684,14]
[336983063,1725274277890,-789.32,0.00030684,15]
[336983064,1725274277899,-882.62,0.00030684,15]
[336983065,1725274277909,-809.83,0.00030684,15]
[336983066,1725274277919,-1150.5,0.00030684,15]
[336983067,1725274277929,-6814.09,0.00030684,8]
[336983068,1725274277938,-637.27,0.00030684,15]
[336983069,1725274277948,-1308.56,0.00030684,15]
[336983070,1725274277957,-865.77,0.00030684,15]
[336983071,1725274277967,-950.48,0.00030684,15]
[336983072,1725274277976,-1009.23,0.00030684,15]
[336983073,1725274277985,-2894.89,0.00030684,15]
[336983074,1725274277995,-1601.38,0.00030684,15]
[336983075,1725274278004,-713.16,0.00030684,15]
[336983076,1725274278016,-1471.23,0.00030684,15]
[336983077,1725274278025,-842.06,0.00030684,15]
[336983078,1725274278036,-598.48,0.00030684,15]
[336983079,1725274278045,-718.52,0.00030684,15]
[336983080,1725274278055,-1029.29,0.00030684,15]
[336983081,1725274278065,-613.02,0.00030684,15]
[336983082,1725274278074,-865.09,0.00030684,15]
[336983083,1725274278083,-687.81,0.00030684,15]
[336983084,1725274278093,-813.79,0.00030684,15]
[336983085,1725274278103,-1898.68,0.00030684,15]
[336983086,1725274278112,-1265.33,0.00030684,15]
[336983087,1725274278122,-609.75,0.00030684,15]
[336983088,1725274278132,-960.51,0.00030684,15]
[336983089,1725274278146,-668.74,0.00030684,15]
[336983090,1725274278157,-978.13,0.00030684,15]
[336983091,1725274278167,-893.12,0.00030684,15]
[336983092,1725274278177,-735.7,0.00030684,15]
[336983093,1725274278186,-3970.16,0.00030684,15]
[336983094,1725274278197,-877.32,0.00030684,15]
[336983095,1725274278208,-4849.28,0.00030684,15]
[336983096,1725274278218,-953.2,0.00030684,15]
[336983097,1725274278371,-1136.95,0.00030684,15]
[336983098,1725274278382,-730.41,0.00030684,15]
[336983099,1725274278392,-1672.46,0.00030684,15]
[336983100,1725274278402,-710.81,0.00030684,15]
[336983101,1725274278411,-640.41,0.00030684,15]
[336983102,1725274278422,-1952.94,0.00030684,15]
[336983103,1725274278432,-941.61,0.00030684,15]
[336983104,1725274278442,-547.19,0.00030684,15]
[336983105,1725274278454,-1195.94,0.00030684,15]
[336983106,1725274278465,-555.2793086,0.00030684,15]
[336983107,1725274278475,-523.2,0.00030684,15]
[336983108,1725274278485,-500.0,0.00030684,15]
[336983109,1725274278497,-1299.65,0.00030684,15]
[336983110,1725274278509,-1158.75,0.00030684,15]
[336983111,1725274278527,-668.22,0.00030684,15]
[336983112,1725274278536,-1200.0,0.00030708,7]
[336983113,1725274278546,-2800.0,0.00030786,7]
[336983114,1725274278555,-155.39,0.000308,31]
[336983115,1725274278567,-155.39,0.000308,31]
[336983116,1725274278577,-1000.0,0.00030809,7]
[336983117,1725274278586,-1600.0,0.00030844,7]
[336983118,1725274278596,-1600.0,0.00030852,7]
[336983119,1725274278606,-550.84027052,0.00030902,7]
[336983120,1725274278618,-1200.0,0.00030902,7]
[336983121,1725274278628,-487.61097771,0.00030953,7]
[336983122,1725274278638,-584.45534467,0.00030958,15]
[336983123,1725274278648,-1145.02653756,0.00030958,15]
[336983124,1725274278658,-795.94758134,0.00030958,15]
[336983125,1725274278668,-521.54859115,0.00030958,15]
[336983126,1725274278678,-651.78557456,0.00030958,15]
[336983127,1725274278689,-574.24457103,0.00030958,15]
[336983128,1725274278699,-898.49847632,0.00030958,15]
[336983129,1725274278710,-688.71007513,0.00030958,15]
[336983130,1725274278719,-609.38017384,0.00030958,15]
[336983131,1725274278729,-644.18620093,0.00030958,15]
[336983132,1725274278739,-509.73130157,0.00030958,14]
[336983133,1725274278750,-789.33204114,0.00030958,15]
[336983134,1725274278762,-882.67214511,0.00030958,15]
[336983135,1725274278772,-809.85238085,0.00030958,15]
[336983136,1725274278782,-1150.69777401,0.00030958,15]
[336983137,1725274278791,-6814.18583222,0.00030958,8]
[336983138,1725274278801,-637.34611486,0.00030958,15]
[336983139,1725274278812,-1308.71369993,0.00030958,15]
[336983140,1725274278822,-865.83581853,0.00030958,15]
[336983141,1725274278831,-950.67337336,0.00030958,15]
[336983142,1725274278840,-1009.31793569,0.00030958,15]
[336983143,1725274278851,-2894.97149844,0.00030958,15]
[336983144,1725274278860,-1601.55040501,0.00030958,15]
[336983145,1725274278869,-713.32114282,0.00030958,15]
[336983146,1725274278879,-1471.23500063,0.00030958,15]
[336983147,1725274278890,-842.22628482,0.00030958,15]
[336983148,1725274278900,-598.57,0.00030958,15]
[336983149,1725274278910,-718.73607099,0.00030958,15]
[336983150,1725274278920,-1029.35729302,0.00030958,15]
[336983151,1725274278929,-613.16,0.00030958,15]
[336983152,1725274278939,-865.22092755,0.00030958,15]
[336983153,1725274278949,-688.01733006,0.00030958,15]
[336983154,1725274278959,-813.84222176,0.00030958,15]
[336983155,1725274278968,-1898.90565634,0.00030958,15]
[336983156,1725274278977,-1265.46777056,0.00030958,15]
[336983157,1725274278987,-609.89028237,0.00030958,15]
[336983158,1725274278997,-960.7,0.00030958,15]
[336983159,1725274279009,-668.92,0.00030958,15]
[336983160,1725274279019,-978.21608796,0.00030958,15]
[336983161,1725274279029,-893.16353917,0.00030958,15]
[336983162,1725274279040,-735.82667253,0.00030958,15]
[336983163,1725274279050,-3970.34855302,0.00030958,15]
[336983164,1725274279060,-877.48915878,0.00030958,15]
[336983165,1725274279070,-4849.4478219,0.00030958,15]
[336983166,1725274279080,-953.2925147,0.00030958,15]
[336983167,1725274279089,-1137.11427323,0.00030958,15]
[336983168,1725274279100,-730.57823192,0.00030958,15]
[336983169,1725274279109,-1672.64301111,0.00030958,15]
[336983170,1725274279118,-710.94523258,0.00030958,15]
[336983171,1725274279128,-640.42004274,0.00030958,15]
[336983172,1725274279137,-1953.01416098,0.00030958,15]
[336983173,1725274279147,-941.82830233,0.00030958,15]
[336983174,1725274279157,-547.33210304,0.00030958,15]
[336983175,1725274279167,-1196.00953309,0.00030958,15]
[336983176,1725274279177,-523.41647801,0.00030958,15]
[336983177,1725274279187,-325.20445257,0.00030958,15]
[336983178,1725274279196,-1299.74601896,0.00030958,15]
[336983179,1725274279206,-1158.75435212,0.00030958,15]
[336983180,1725274279216,-668.27128399,0.00030958,15]
[336983181,1725274279226,-1001.54531771,0.00031,15]
[336983182,1725274279236,-300000.0,0.00031,14]
[336983183,1725274279246,-2800.0,0.00031048,7]
[336983184,1725274279255,-1600.0,0.00031061,7]
[336983185,1725274279266,-1600.0,0.00031065,7]
[336983186,1725274279276,-2800.0,0.00031074,7]
[336983187,1725274279286,-1200.0,0.00031168,7]
[336983188,1725274279295,-1200.0,0.00031183,7]